Dept Family,Entity Name,Cert/ Date,Supplier Name,Reference,Gross,Group/Department,Type of Expenditure - Subjective Codes
DCMS,English Heritage,09/07/2010,Feilden Clegg Bradley Studios,772345,"89,289.42",Planning & Development Group P&D Group Projects,OPERATIONAL COSTS - Commissioned Architects
DCMS,English Heritage,12/07/2010,Feilden Clegg Bradley Studios,775902,"29,762.75",Planning & Development Group P&D Group Projects,OPERATIONAL COSTS - Commissioned Architects
DCMS,English Heritage,14/07/2010,Feilden Clegg Bradley Studios,779497,"34,315.88",Planning & Development Group P&D Group Projects,OPERATIONAL COSTS - Commissioned Architects
DCMS,English Heritage,17/08/2010,Feilden Clegg Bradley Studios,782556,"29,763.93",Planning & Development Group P&D Group Projects,OPERATIONAL COSTS - Commissioned Architects
DCMS,English Heritage,28/06/2010,Haley Sharpe Design Ltd,776376,"34,097.77",Properties and Education Group Property Investment Programme,NET WIP MOVEMENT - WIP Professional Works Advice
DCMS,English Heritage,21/06/2010,D and A 2010 and D and A 2011 Ltd,776486,"72,362.96",Conservation & Protection Group Administrative Estates Dept,RUNNING COSTS - Rent - Operating Leases
DCMS,English Heritage,22/09/2010,D and A 2010 and D and A 2011 Ltd,786493,"72,362.96",Conservation & Protection Group Administrative Estates Dept,RUNNING COSTS - Rent - Operating Leases
DCMS,English Heritage,12/05/2010,ESRI (UK) Ltd,772248,"56,242.26",Resources Group Information Comms & Technology Dept,NET WIP MOVEMENT - WIP Computer Consultancy
DCMS,English Heritage,28/05/2010,ESRI (UK) Ltd,773528,"79,759.00",Resources Group Information Comms & Technology Dept,RUNNING COSTS - Software Maintenance
DCMS,English Heritage,13/09/2010,ESRI (UK) Ltd,782051,"37,494.84",Resources Group Information Comms & Technology Dept,NET WIP MOVEMENT - WIP Computer Consultancy
DCMS,English Heritage,09/08/2010,ESRI (UK) Ltd,782311,"49,765.36",Resources Group Information Comms & Technology Dept,NET WIP MOVEMENT - WIP Computer Consultancy
DCMS,English Heritage,21/06/2010,Miles and Company,777579,"42,500.00",Conservation & Protection Group Conservation & Protection Centre,OPERATIONAL COSTS - Works for Heritage Buildings
DCMS,English Heritage,02/08/2010,The Colourhouse Ltd,781628,"25,049.00",Conservation & Protection Group Conservation & Protection Centre,STOCK - Guidebooks WIP
DCMS,English Heritage,18/08/2010,The Colourhouse Ltd,782122,"27,670.00",Conservation & Protection Group Conservation & Protection Centre,STOCK - Finished Guidebooks
DCMS,English Heritage,22/07/2010,William Anelay Limited,779381,"9,568.59",Properties and Education Group Site Conservation Programme,OPERATIONAL COSTS - Works for Heritage Buildings
DCMS,English Heritage,22/07/2010,William Anelay Limited,779381,"39,546.41",Properties and Education Group Site Conservation Programme,NET WIP MOVEMENT - WIP Refurbishment and Fitting Out Costs
DCMS,English Heritage,31/08/2010,William Anelay Limited,783336,"17,498.10",Properties and Education Group Site Conservation Programme,NET WIP MOVEMENT - WIP Refurbishment and Fitting Out Costs
DCMS,English Heritage,31/08/2010,William Anelay Limited,783336,"19,338.15",Properties and Education Group Site Conservation Programme,OPERATIONAL COSTS - Works for Heritage Buildings
DCMS,English Heritage,19/05/2010,Lorne Stewart PLC,771165,"34,075.00",Properties and Education Group Property Maintenance Programme,OPERATIONAL COSTS - Annual Cyclical Work M & E
DCMS,English Heritage,18/05/2010,Nimbus Conservation,772429,"153,674.30",Properties and Education Group Site Conservation Programme,OPERATIONAL COSTS - Works for Heritage Buildings
DCMS,English Heritage,16/06/2010,Nimbus Conservation,774967,"171,882.34",Properties and Education Group Site Conservation Programme,OPERATIONAL COSTS - Works for Heritage Buildings
DCMS,English Heritage,02/08/2010,Nimbus Conservation,781713,"42,777.86",Properties and Education Group Site Conservation Programme,OPERATIONAL COSTS - Works for Heritage Buildings
DCMS,English Heritage,21/06/2010,R Moulding and Co Salisbury Ltd,777292,"33,786.42",Properties and Education Group Property Maintenance Programme,OPERATIONAL COSTS - Annual Cyclical Works-Building
DCMS,English Heritage,12/05/2010,W H Smith and R Ensor SAP Scheme,772005,"34,776.47",Conservation & Protection Group Administrative Estates Dept,RUNNING COSTS - Rent - Operating Leases
DCMS,English Heritage,05/07/2010,W H Smith and R Ensor SAP Scheme,778281,"34,776.47",Conservation & Protection Group Administrative Estates Dept,RUNNING COSTS - Rent - Operating Leases
DCMS,English Heritage,24/05/2010,Wessex Archaeology,771393,"50,000.00",Conservation & Protection Group Strategy Dept,OPERATIONAL COSTS - Maritime Consultants
DCMS,English Heritage,17/06/2010,Wessex Archaeology,774997,"50,000.00",Conservation & Protection Group Strategy Dept,OPERATIONAL COSTS - Maritime Consultants
DCMS,English Heritage,13/09/2010,Wessex Archaeology,784539,"50,000.00",Conservation & Protection Group Strategy Dept,OPERATIONAL COSTS - Maritime Consultants
DCMS,English Heritage,20/08/2010,Firmingers,782861,"82,250.00",Properties and Education Group Property Investment Programme,NET WIP MOVEMENT - WIP Professional Works Advice
DCMS,English Heritage,30/06/2010,Knight Frank LLP,776625,"44,408.83",Conservation & Protection Group Administrative Estates Dept,RUNNING COSTS - Rent - Operating Leases
DCMS,English Heritage,30/06/2010,Knight Frank LLP,776625,"16,398.45",Conservation & Protection Group Administrative Estates Dept,RUNNING COSTS - Building Service Charges
DCMS,English Heritage,28/06/2010,The Newspaper Licensing Agency Ltd,778144,"32,340.61",National Advice & Information Group Corporate Communications Dept,RUNNING COSTS - Corporate subscriptions
DCMS,English Heritage,12/05/2010,Dean and Chapter of Canterbury,772766,"110,000.00",Planning & Development Group Planning & Development Centre,GRANTS PAYABLE - CATHEDRALS
DCMS,English Heritage,16/07/2010,Sykes and Son Limited,780075,"25,452.93",Properties and Education Group Property Maintenance Programme,OPERATIONAL COSTS - Annual Cyclical Works-Building
DCMS,English Heritage,16/07/2010,Sykes and Son Limited,780075,"3,295.97",Properties and Education Group Property Maintenance Programme,OPERATIONAL COSTS - Annual Cyclical Works-Building
DCMS,English Heritage,16/07/2010,Sykes and Son Limited,780075,561.63,Properties and Education Group Property Maintenance Programme,OPERATIONAL COSTS - Responsive Maint Building & Grnd
DCMS,English Heritage,16/07/2010,Sykes and Son Limited,780075,"2,760.35",Properties and Education Group Property Maintenance Programme,OPERATIONAL COSTS - Responsive Maint Building & Grnd
DCMS,English Heritage,02/08/2010,Comm for Arch and Built Environ,781067,"50,000.00",Properties and Education Group Education Dept,OPERATIONAL COSTS - Fees for Professional Advice
DCMS,English Heritage,10/05/2010,E Bowman and Sons Ltd,772178,"28,291.63",Planning & Development Group P&D Group Projects,OPERATIONAL COSTS - Works for Heritage Buildings
DCMS,English Heritage,10/05/2010,E Bowman and Sons Ltd,772178,"121,025.00",Planning & Development Group P&D Group Projects,OPERATIONAL COSTS - Works for Heritage Buildings
DCMS,English Heritage,21/06/2010,E Bowman and Sons Ltd,777447,"45,931.44",Planning & Development Group P&D Group Projects,OPERATIONAL COSTS - Works for Heritage Buildings
DCMS,English Heritage,14/07/2010,E Bowman and Sons Ltd,778619,"42,212.51",Planning & Development Group P&D Group Projects,OPERATIONAL COSTS - Works for Heritage Buildings
DCMS,English Heritage,07/09/2010,E Bowman and Sons Ltd,781423,"60,316.17",Planning & Development Group P&D Group Projects,OPERATIONAL COSTS - Works for Heritage Buildings
DCMS,English Heritage,25/08/2010,E Bowman and Sons Ltd,784308,"28,183.00",Properties and Education Group Site Conservation Programme,OPERATIONAL COSTS - Works for Heritage Buildings
DCMS,English Heritage,07/09/2010,E Bowman and Sons Ltd,785081,"67,026.71",Planning & Development Group P&D Group Projects,OPERATIONAL COSTS - Works for Heritage Buildings
DCMS,English Heritage,23/06/2010,Star Technology Services Ltd,777161,"76,161.96",Resources Group Information Comms & Technology Dept,RUNNING COSTS - Hardware Maintenance
DCMS,English Heritage,22/09/2010,Star Technology Services Ltd,785995,"76,681.90",Resources Group Information Comms & Technology Dept,RUNNING COSTS - Hardware Maintenance
DCMS,English Heritage,23/06/2010,David Ball Restoration Ltd,775636,"28,149.59",Properties and Education Group Site Conservation Programme,OPERATIONAL COSTS - Works for Heritage Buildings
DCMS,English Heritage,23/06/2010,David Ball Restoration Ltd,775636,"5,870.89",Properties and Education Group Site Conservation Programme,OPERATIONAL COSTS - Works for Heritage Buildings
DCMS,English Heritage,11/06/2010,PAYE Stonework and Restoration Ltd,774698,"1,417.16",Properties and Education Group Site Conservation Programme,OPERATIONAL COSTS - Works for Heritage Buildings
DCMS,English Heritage,11/06/2010,PAYE Stonework and Restoration Ltd,774698,"10,221.80",Properties and Education Group Site Conservation Programme,OPERATIONAL COSTS - Works for Heritage Buildings
DCMS,English Heritage,11/06/2010,PAYE Stonework and Restoration Ltd,774698,"16,802.50",Properties and Education Group Site Conservation Programme,OPERATIONAL COSTS - Works for Heritage Buildings
DCMS,English Heritage,11/06/2010,PAYE Stonework and Restoration Ltd,774698,"26,705.39",Properties and Education Group Site Conservation Programme,OPERATIONAL COSTS - Works for Heritage Buildings
DCMS,English Heritage,14/05/2010,Past Pleasures Ltd,772317,"27,260.00",Properties and Education Group Operations Dept,SALES AND PROMOTION - Exihibts/Displays
DCMS,English Heritage,21/05/2010,Past Pleasures Ltd,772711,"27,698.28",Properties and Education Group Operations Dept,SALES AND PROMOTION - Exihibts/Displays
DCMS,English Heritage,16/08/2010,Past Pleasures Ltd,782950,"28,673.53",Properties and Education Group Operations Dept,SALES AND PROMOTION - Exihibts/Displays
DCMS,English Heritage,22/09/2010,Past Pleasures Ltd,785715,"56,385.90",Properties and Education Group Operations Dept,SALES AND PROMOTION - Exihibts/Displays
DCMS,English Heritage,12/05/2010,Gillards Worldwide,772689,"61,443.36",Properties and Education Group Retail Dept,SALES AND PROMOTION - Marketing Distribution
DCMS,English Heritage,15/06/2010,Gillards Worldwide,776604,"58,407.47",Properties and Education Group Retail Dept,SALES AND PROMOTION - Marketing Distribution
DCMS,English Heritage,12/07/2010,Gillards Worldwide,779073,"66,621.99",Properties and Education Group Retail Dept,SALES AND PROMOTION - Marketing Distribution
DCMS,English Heritage,17/08/2010,Gillards Worldwide,783530,"70,323.67",Properties and Education Group Retail Dept,SALES AND PROMOTION - Marketing Distribution
DCMS,English Heritage,22/09/2010,Gillards Worldwide,786696,"82,006.51",Properties and Education Group Retail Dept,SALES AND PROMOTION - Marketing Distribution
DCMS,English Heritage,19/05/2010,Denton Corker Marshall LLP,772337,"32,538.10",Properties and Education Group Property Investment Programme,NET WIP MOVEMENT - WIP Professional Works Advice
DCMS,English Heritage,04/06/2010,Denton Corker Marshall LLP,775376,"32,538.10",Properties and Education Group Property Investment Programme,NET WIP MOVEMENT - WIP Professional Works Advice
DCMS,English Heritage,14/07/2010,Denton Corker Marshall LLP,780180,"32,538.10",Properties and Education Group Property Investment Programme,NET WIP MOVEMENT - WIP Professional Works Advice
DCMS,English Heritage,25/08/2010,Denton Corker Marshall LLP,784563,"32,538.10",Properties and Education Group Property Investment Programme,NET WIP MOVEMENT - WIP Professional Works Advice
DCMS,English Heritage,23/06/2010,Historic Property Restoration Ltd,777599,"35,374.82",Properties and Education Group Property Maintenance Programme,OPERATIONAL COSTS - Annual Cyclical Work M & E
DCMS,English Heritage,23/06/2010,Historic Property Restoration Ltd,777599,"12,167.78",Properties and Education Group Property Maintenance Programme,OPERATIONAL COSTS - Annual Cyclical Works-Building
DCMS,English Heritage,23/06/2010,Historic Property Restoration Ltd,777599,"90,324.12",Properties and Education Group Property Maintenance Programme,OPERATIONAL COSTS - Annual Cyclical Works-Building
DCMS,English Heritage,23/06/2010,Historic Property Restoration Ltd,777599,"1,219.45",Properties and Education Group Property Maintenance Programme,OPERATIONAL COSTS - Annual Cyclical Work M & E
DCMS,English Heritage,28/06/2010,Historic Property Restoration Ltd,778153,"10,185.95",Properties and Education Group Property Maintenance Programme,OPERATIONAL COSTS - Annual Cyclical Works-Building
DCMS,English Heritage,28/06/2010,Historic Property Restoration Ltd,778153,"22,116.40",Properties and Education Group Property Maintenance Programme,OPERATIONAL COSTS - Annual Cyclical Work M & E
DCMS,English Heritage,28/06/2010,Historic Property Restoration Ltd,778153,735.74,Properties and Education Group Property Maintenance Programme,OPERATIONAL COSTS - Annual Cyclical Work M & E
DCMS,English Heritage,28/06/2010,Historic Property Restoration Ltd,778153,622.16,Properties and Education Group Property Maintenance Programme,OPERATIONAL COSTS - Leased Accomodation Maint
DCMS,English Heritage,28/06/2010,Historic Property Restoration Ltd,778153,"23,363.10",Properties and Education Group Property Maintenance Programme,OPERATIONAL COSTS - Annual Cyclical Works-Building
DCMS,English Heritage,28/06/2010,Historic Property Restoration Ltd,778154,"11,560.48",Properties and Education Group Property Maintenance Programme,OPERATIONAL COSTS - Responsive Repairs M & E
DCMS,English Heritage,28/06/2010,Historic Property Restoration Ltd,778154,"19,691.31",Properties and Education Group Property Maintenance Programme,OPERATIONAL COSTS - Responsive Maint Building & Grnd
DCMS,English Heritage,28/06/2010,Historic Property Restoration Ltd,778154,"3,284.18",Properties and Education Group Property Maintenance Programme,OPERATIONAL COSTS - Responsive Maint Building & Grnd
DCMS,English Heritage,28/06/2010,Historic Property Restoration Ltd,778154,611.08,Properties and Education Group Property Maintenance Programme,OPERATIONAL COSTS - Responsive Repairs M & E
DCMS,English Heritage,14/07/2010,Historic Property Restoration Ltd,778997,"56,923.94",Properties and Education Group Site Conservation Programme,OPERATIONAL COSTS - Fees for Professional Advice
DCMS,English Heritage,30/07/2010,Historic Property Restoration Ltd,781830,"7,281.42",Properties and Education Group Property Maintenance Programme,OPERATIONAL COSTS - Annual Cyclical Work M & E
DCMS,English Heritage,30/07/2010,Historic Property Restoration Ltd,781830,"12,234.41",Properties and Education Group Property Maintenance Programme,OPERATIONAL COSTS - Annual Cyclical Works-Building
DCMS,English Heritage,30/07/2010,Historic Property Restoration Ltd,781830,"17,576.98",Properties and Education Group Property Maintenance Programme,OPERATIONAL COSTS - Annual Cyclical Works-Building
DCMS,English Heritage,30/07/2010,Historic Property Restoration Ltd,781830,208.19,Properties and Education Group Property Maintenance Programme,OPERATIONAL COSTS - Annual Cyclical Work M & E
DCMS,English Heritage,30/07/2010,Historic Property Restoration Ltd,781830,333.69,Properties and Education Group Property Maintenance Programme,OPERATIONAL COSTS - Leased Accomodation Maint
DCMS,English Heritage,29/09/2010,Historic Property Restoration Ltd,787009,"4,857.02",Properties and Education Group Property Maintenance Programme,OPERATIONAL COSTS - Annual Cyclical Works-Building
DCMS,English Heritage,29/09/2010,Historic Property Restoration Ltd,787009,"19,549.86",Properties and Education Group Property Maintenance Programme,OPERATIONAL COSTS - Annual Cyclical Work M & E
DCMS,English Heritage,29/09/2010,Historic Property Restoration Ltd,787009,339.96,Properties and Education Group Property Maintenance Programme,OPERATIONAL COSTS - Leased Accomodation Maint
DCMS,English Heritage,29/09/2010,Historic Property Restoration Ltd,787009,"14,270.95",Properties and Education Group Property Maintenance Programme,OPERATIONAL COSTS - Annual Cyclical Works-Building
DCMS,English Heritage,29/09/2010,Historic Property Restoration Ltd,787009,"1,948.13",Properties and Education Group Property Maintenance Programme,OPERATIONAL COSTS - Annual Cyclical Work M & E
DCMS,English Heritage,06/08/2010,Central Office of Information,781419,"73,437.50",National Advice & Information Group Corporate Communications Dept,SALES AND PROMOTION - Marketing Distribution
DCMS,English Heritage,16/06/2010,Ratcliffes,776490,"277,593.75",Conservation & Protection Group Administrative Estates Dept,RUNNING COSTS - Rent - Operating Leases
DCMS,English Heritage,22/09/2010,Ratcliffes,786494,"277,593.75",Conservation & Protection Group Administrative Estates Dept,RUNNING COSTS - Rent - Operating Leases
DCMS,English Heritage,22/09/2010,The Arts Council of England,786808,"80,000.00",Planning & Development Group Planning & Development Centre,OPERATIONAL COSTS - Fees for Professional Advice
DCMS,English Heritage,11/08/2010,BKS Security Services Ltd,782505,"29,522.63",Properties and Education Group Operations Dept,OPERATIONAL COSTS - Security Guard & Monitor Station
DCMS,English Heritage,13/09/2010,BKS Security Services Ltd,785580,"30,449.14",Properties and Education Group Operations Dept,OPERATIONAL COSTS - Security Guard & Monitor Station
DCMS,English Heritage,23/04/2010,Atos Origin IT Services UK Ltd,770652,"57,061.51",Resources Group Information Comms & Technology Dept,RUNNING COSTS - ITFM
DCMS,English Heritage,23/04/2010,Atos Origin IT Services UK Ltd,770653,"1,077,269.75",Resources Group Information Comms & Technology Dept,RUNNING COSTS - ITFM
DCMS,English Heritage,10/08/2010,Atos Origin IT Services UK Ltd,772061,"30,986.16",Planning & Development Group Eastern Territory,OTHER EXPENDITURE - Computer Equipment <10k
DCMS,English Heritage,28/07/2010,Atos Origin IT Services UK Ltd,780313,"62,544.52",Resources Group Information Comms & Technology Dept,RUNNING COSTS - ITFM
DCMS,English Heritage,28/07/2010,Atos Origin IT Services UK Ltd,780314,"1,014,725.23",Resources Group Information Comms & Technology Dept,RUNNING COSTS - ITFM
DCMS,English Heritage,28/07/2010,Atos Origin IT Services UK Ltd,780314,"62,544.52",Resources Group Information Comms & Technology Dept,RUNNING COSTS - ITFM
DCMS,English Heritage,13/08/2010,Atos Origin IT Services UK Ltd,782517,"45,056.71",Resources Group Relocation Dept,RUNNING COSTS - ITFM
DCMS,English Heritage,10/06/2010,Grayling UK Ltd,774918,"29,276.30",Properties and Education Group Marketing Dept,SALES AND PROMOTION - Public Relations
DCMS,English Heritage,29/09/2010,Linford-Bridgeman Ltd,787253,"38,174.27",Planning & Development Group P&D Group Projects,OPERATIONAL COSTS - Works for Heritage Buildings
DCMS,English Heritage,16/07/2010,Mail Marketing Scotland Ltd,780188,"32,910.38",Properties and Education Group Marketing Dept,RUNNING COSTS - Postage & Couriers
DCMS,English Heritage,10/08/2010,Mail Marketing Scotland Ltd,782869,"35,323.08",Properties and Education Group Marketing Dept,RUNNING COSTS - Postage & Couriers
DCMS,English Heritage,16/09/2010,Mail Marketing Scotland Ltd,785737,"27,368.22",Properties and Education Group Marketing Dept,RUNNING COSTS - Postage & Couriers
DCMS,English Heritage,24/05/2010,St Ives Web Ltd,773534,"2,810.73",Properties and Education Group Marketing Dept,SALES AND PROMOTION - Promotional Material
DCMS,English Heritage,24/05/2010,St Ives Web Ltd,773534,"22,716.52",Properties and Education Group Marketing Dept,SALES AND PROMOTION - Promotional Material
DCMS,English Heritage,05/07/2010,St Ives Web Ltd,778572,"23,053.12",Properties and Education Group Marketing Dept,SALES AND PROMOTION - Promotional Material
DCMS,English Heritage,05/07/2010,St Ives Web Ltd,778572,"2,821.29",Properties and Education Group Marketing Dept,SALES AND PROMOTION - Promotional Material
DCMS,English Heritage,07/07/2010,B Smith Packaging (Worcester) Ltd,778576,"9,803.87",Properties and Education Group Retail Dept,OPERATIONAL COSTS - Consumable Materials
DCMS,English Heritage,07/07/2010,B Smith Packaging (Worcester) Ltd,778576,"20,495.04",Properties and Education Group Retail Dept,OPERATIONAL COSTS - Consumable Materials
DCMS,English Heritage,07/07/2010,B Smith Packaging (Worcester) Ltd,778576,"5,723.19",Properties and Education Group Retail Dept,OPERATIONAL COSTS - Consumable Materials
DCMS,English Heritage,09/07/2010,Donovan O'Farrell,778713,"53,609.38",Conservation & Protection Group Administrative Estates Dept,RUNNING COSTS - Rent - Operating Leases
DCMS,English Heritage,29/09/2010,Donovan O'Farrell,787455,"53,609.38",Conservation & Protection Group Administrative Estates Dept,RUNNING COSTS - Rent - Operating Leases
DCMS,English Heritage,30/07/2010,National Audit Office,780362,"53,000.00",Resources Group Finance Dept,OTHER EXPENDITURE - Audit Fee
DCMS,English Heritage,30/07/2010,National Audit Office,780362,"7,000.00",Resources Group Finance Dept,OTHER EXPENDITURE - Audit Fee
DCMS,English Heritage,13/09/2010,Archaeological Research Services,784920,"37,000.00",Conservation & Protection Group Strategy Dept,COMMISSIONS - Historic Environment Prog Projects
DCMS,English Heritage,27/09/2010,Midland Masonry,786690,"33,487.50",Properties and Education Group Site Conservation Programme,OPERATIONAL COSTS - Works for Heritage Buildings
DCMS,English Heritage,22/09/2010,Sussex Arts Marketing Ltd,786863,"26,172.00",Conservation & Protection Group Strategy Dept,COMMISSIONS - Historic Environment Prog Projects
DCMS,English Heritage,15/06/2010,Prudential Prop Invest Man Ltd,776487,"37,513.00",Conservation & Protection Group Administrative Estates Dept,RUNNING COSTS - Repairs to Offices
DCMS,English Heritage,15/06/2010,Prudential Prop Invest Man Ltd,776487,"55,303.25",Conservation & Protection Group Administrative Estates Dept,RUNNING COSTS - Rent - Operating Leases
DCMS,English Heritage,15/06/2010,Prudential Prop Invest Man Ltd,776488,"99,234.00",Conservation & Protection Group Administrative Estates Dept,RUNNING COSTS - Repairs to Offices
DCMS,English Heritage,15/06/2010,Prudential Prop Invest Man Ltd,776488,"186,401.50",Conservation & Protection Group Administrative Estates Dept,RUNNING COSTS - Rent - Operating Leases
DCMS,English Heritage,22/09/2010,Prudential Prop Invest Man Ltd,786145,"55,303.25",Conservation & Protection Group Administrative Estates Dept,RUNNING COSTS - Rent - Operating Leases
DCMS,English Heritage,22/09/2010,Prudential Prop Invest Man Ltd,786145,"37,724.00",Conservation & Protection Group Administrative Estates Dept,RUNNING COSTS - Building Service Charges
DCMS,English Heritage,22/09/2010,Prudential Prop Invest Man Ltd,786146,"186,401.50",Conservation & Protection Group Administrative Estates Dept,RUNNING COSTS - Rent - Operating Leases
DCMS,English Heritage,22/09/2010,Prudential Prop Invest Man Ltd,786146,"99,785.00",Conservation & Protection Group Administrative Estates Dept,RUNNING COSTS - Building Service Charges
DCMS,English Heritage,12/05/2010,ISG InteriorExterior Plc,770665,"33,806.21",Resources Group Relocation Dept,RUNNING COSTS - Repairs to Offices
DCMS,English Heritage,10/05/2010,Enterprise Rent A Car UK Ltd,772565,"40,685.71",Corporate,RUNNING COSTS - Car Hire
DCMS,English Heritage,09/06/2010,Enterprise Rent A Car UK Ltd,776211,"41,484.40",Corporate,RUNNING COSTS - Car Hire
DCMS,English Heritage,07/07/2010,Enterprise Rent A Car UK Ltd,779230,"45,278.77",Corporate,RUNNING COSTS - Car Hire
DCMS,English Heritage,18/08/2010,Enterprise Rent A Car UK Ltd,783846,"46,133.90",Corporate,RUNNING COSTS - Car Hire
DCMS,English Heritage,08/09/2010,Enterprise Rent A Car UK Ltd,785852,"32,891.57",Corporate,RUNNING COSTS - Car Hire
DCMS,English Heritage,06/05/2010,Tilhill Forestry Ltd,770613,"58,731.99",Properties and Education Group Property Investment Programme,OPERATIONAL COSTS - Works for Heritage Buildings
DCMS,English Heritage,06/05/2010,Tilhill Forestry Ltd,771263,"281,879.08",Properties and Education Group Property Investment Programme,OPERATIONAL COSTS - Works for Heritage Buildings
DCMS,English Heritage,06/05/2010,Tilhill Forestry Ltd,771396,"130,141.45",Properties and Education Group Property Investment Programme,OPERATIONAL COSTS - Works for Heritage Buildings
DCMS,English Heritage,14/07/2010,Tilhill Forestry Ltd,779010,"36,474.75",Properties and Education Group Property Investment Programme,OPERATIONAL COSTS - Works for Heritage Buildings
DCMS,English Heritage,14/07/2010,Tilhill Forestry Ltd,779010,"197,381.62",Properties and Education Group Property Investment Programme,OPERATIONAL COSTS - Works for Heritage Buildings
DCMS,English Heritage,24/05/2010,NTL Group Ltd,768938,"70,500.00",Resources Group Information Comms & Technology Dept,OTHER EXPENDITURE - Computer Equipment <10k
DCMS,English Heritage,15/06/2010,Sanderson RBS Ltd,775835,"37,015.50",Resources Group Information Comms & Technology Dept,RUNNING COSTS - Software Maintenance
DCMS,English Heritage,27/09/2010,Sanderson RBS Ltd,787600,"37,015.50",Resources Group Information Comms & Technology Dept,RUNNING COSTS - Hardware Maintenance
DCMS,English Heritage,13/09/2010,Academia Ltd,785794,"29,915.93",Resources Group Information Comms & Technology Dept,RUNNING COSTS - Software Maintenance
DCMS,English Heritage,02/06/2010,Culture Creative Ltd,775066,96.9,Properties and Education Group Development Director,RUNNING COSTS - Other Administration
DCMS,English Heritage,02/06/2010,Culture Creative Ltd,775066,"25,656.07",Properties and Education Group Development Director,OPERATIONAL COSTS - Building Exhib & Displays
DCMS,English Heritage,02/06/2010,Culture Creative Ltd,775066,"1,255.11",Properties and Education Group Development Director,SALES AND PROMOTION - Events Production
DCMS,English Heritage,02/06/2010,Culture Creative Ltd,775066,"1,204.67",National Advice & Information Group Corporate Communications Dept,SALES AND PROMOTION - Public Relations
DCMS,English Heritage,07/07/2010,Culture Creative Ltd,779008,"2,753.54",Properties and Education Group Development Director,SALES AND PROMOTION - Advertising
DCMS,English Heritage,07/07/2010,Culture Creative Ltd,779008,318.54,Properties and Education Group Development Director,SALES AND PROMOTION - Events Production
DCMS,English Heritage,07/07/2010,Culture Creative Ltd,779008,205.63,Properties and Education Group Development Director,SALES AND PROMOTION - Promotional Material
DCMS,English Heritage,07/07/2010,Culture Creative Ltd,779008,"8,536.03",Properties and Education Group Development Director,SALES AND PROMOTION - Marketing Distribution
DCMS,English Heritage,07/07/2010,Culture Creative Ltd,779008,374.24,Properties and Education Group Development Director,RUNNING COSTS - Other Administration
DCMS,English Heritage,07/07/2010,Culture Creative Ltd,779008,"16,431.81",Properties and Education Group Development Director,OPERATIONAL COSTS - Building Exhib & Displays
DCMS,English Heritage,12/05/2010,Siemens Enterprise Communictns Ltd,769171,"49,388.78",Resources Group Information Comms & Technology Dept,RUNNING COSTS - Telephone & Telex
DCMS,English Heritage,16/07/2010,Evolve Design London Ltd,779498,757.88,Planning & Development Group P&D Group Projects,OPERATIONAL COSTS - Fees for Professional Advice
DCMS,English Heritage,16/07/2010,Evolve Design London Ltd,779498,157.55,Planning & Development Group P&D Group Projects,OPERATIONAL COSTS - Fees for Professional Advice
DCMS,English Heritage,16/07/2010,Evolve Design London Ltd,779498,"6,956.00",Planning & Development Group P&D Group Projects,OPERATIONAL COSTS - Fees for Professional Advice
DCMS,English Heritage,16/07/2010,Evolve Design London Ltd,779498,"3,530.88",Planning & Development Group P&D Group Projects,OPERATIONAL COSTS - Fees for Professional Advice
DCMS,English Heritage,16/07/2010,Evolve Design London Ltd,779498,"4,541.38",Planning & Development Group P&D Group Projects,OPERATIONAL COSTS - Fees for Professional Advice
DCMS,English Heritage,16/07/2010,Evolve Design London Ltd,779498,"34,552.05",Planning & Development Group P&D Group Projects,OPERATIONAL COSTS - Fees for Professional Advice
DCMS,English Heritage,16/07/2010,Evolve Design London Ltd,779498,710.88,Planning & Development Group P&D Group Projects,OPERATIONAL COSTS - Fees for Professional Advice
DCMS,English Heritage,14/06/2010,Dep for Communities and Local Gov,774506,"1,243,696.37",Resources Group Information Comms & Technology Dept,OTHER EXPENDITURE - Software Licences <10k
DCMS,English Heritage,16/06/2010,Seven Squared Ltd,776603,"97,129.62",Properties and Education Group Marketing Dept,SALES AND PROMOTION - Promotional Material
DCMS,English Heritage,30/07/2010,Seven Squared Ltd,782003,"117,500.00",Properties and Education Group Marketing Dept,SALES AND PROMOTION - Promotional Material
DCMS,English Heritage,30/07/2010,Seven Squared Ltd,782004,"83,589.04",Properties and Education Group Marketing Dept,SALES AND PROMOTION - Promotional Material
DCMS,English Heritage,07/07/2010,Tribal Consulting Ltd,777427,"39,724.40",Conservation & Protection Group Head of Estates Dept,NET WIP MOVEMENT - WIP Asset Purch over 10k
DCMS,English Heritage,10/05/2010,Hewlett Packard Ltd,771475,"16,905.76",Resources Group Information Comms & Technology Dept,NET WIP MOVEMENT - WIP Asset Purch over 10k
DCMS,English Heritage,10/05/2010,Hewlett Packard Ltd,771475,"8,398.88",Resources Group Information Comms & Technology Dept,NET WIP MOVEMENT - WIP Asset Purch over 10k
DCMS,English Heritage,10/05/2010,Hewlett Packard Ltd,771475,"38,116.46",Resources Group Information Comms & Technology Dept,NET WIP MOVEMENT - WIP Asset Purch over 10k
DCMS,English Heritage,12/05/2010,Media Managers Ltd,772467,"36,782.42",Properties and Education Group Marketing Dept,SALES AND PROMOTION - Advertising
DCMS,English Heritage,28/05/2010,BRB Residuary Ltd,774770,"22,273.59",Conservation & Protection Group Administrative Estates Dept,RUNNING COSTS - Rent - Operating Leases
DCMS,English Heritage,28/05/2010,BRB Residuary Ltd,774770,"9,226.69",Conservation & Protection Group Administrative Estates Dept,RUNNING COSTS - Building Service Charges
DCMS,English Heritage,27/08/2010,BRB Residuary Ltd,784237,"22,273.59",Conservation & Protection Group Administrative Estates Dept,RUNNING COSTS - Rent - Operating Leases
DCMS,English Heritage,27/08/2010,BRB Residuary Ltd,784237,"9,226.69",Conservation & Protection Group Administrative Estates Dept,RUNNING COSTS - Building Service Charges
DCMS,English Heritage,30/07/2010,Steelcase Solutions,781696,"115,529.00",Resources Group Relocation Dept,FIXED  ASSETS - Furniture and Fittings> 10k
DCMS,English Heritage,07/09/2010,Thomas Sinden Ltd,785044,"103,675.41",Properties and Education Group Property Investment Programme,OPERATIONAL COSTS - Works for Heritage Buildings
DCMS,English Heritage,27/08/2010,Team Force Restoration Ltd,784582,"27,036.14",Properties and Education Group Site Conservation Programme,OPERATIONAL COSTS - Fees for Professional Advice
DCMS,English Heritage,12/05/2010,Farnham Castle Briefings Ltd,772595,"44,062.50",Properties and Education Group Site Conservation Programme,OPERATIONAL COSTS - Works for Heritage Buildings
DCMS,English Heritage,17/08/2010,Dot New Media Ltd,783504,"31,983.50",Properties and Education Group Property Investment Programme,SALES AND PROMOTION - Exihibts/Displays
DCMS,English Heritage,26/05/2010,Quadron Services Ltd,774183,"21,319.76",Properties and Education Group Property Maintenance Programme,OPERATIONAL COSTS - Annual Cyclical Works-Building
DCMS,English Heritage,26/05/2010,Quadron Services Ltd,774183,"12,221.08",Properties and Education Group Property Maintenance Programme,OPERATIONAL COSTS - Annual Cyclical Works-Building
DCMS,English Heritage,26/05/2010,Quadron Services Ltd,774183,"2,716.70",Properties and Education Group Property Maintenance Programme,OPERATIONAL COSTS - Annual Cyclical Works-Building
DCMS,English Heritage,23/06/2010,Quadron Services Ltd,775789,"4,380.20",Properties and Education Group Property Maintenance Programme,OPERATIONAL COSTS - Annual Cyclical Works-Building
DCMS,English Heritage,23/06/2010,Quadron Services Ltd,775789,"15,569.69",Properties and Education Group Property Maintenance Programme,OPERATIONAL COSTS - Annual Cyclical Works-Building
DCMS,English Heritage,23/06/2010,Quadron Services Ltd,775789,"6,005.61",Properties and Education Group Property Maintenance Programme,OPERATIONAL COSTS - Annual Cyclical Works-Building
DCMS,English Heritage,12/04/2010,ISG Jackson Special Projects Ltd,769156,"229,741.82",Properties and Education Group Property Investment Programme,NET WIP MOVEMENT - WIP Operational Building Works
DCMS,English Heritage,09/04/2010,ISG Jackson Special Projects Ltd,769157,"75,843.51",Properties and Education Group Property Investment Programme,NET WIP MOVEMENT - WIP Operational Building Works
DCMS,English Heritage,24/05/2010,ISG Jackson Special Projects Ltd,772471,"86,163.07",Properties and Education Group Property Investment Programme,NET WIP MOVEMENT - WIP Operational Building Works
DCMS,English Heritage,23/04/2010,Berwin Leighton Paisner LLP,770580,"35,250.00",Planning & Development Group P&D Group Projects,OPERATIONAL COSTS - Fees for Professional Advice
DCMS,English Heritage,23/04/2010,Berwin Leighton Paisner LLP,770580,"29,375.00",Planning & Development Group P&D Group Projects,OPERATIONAL COSTS - Fees for Professional Advice
DCMS,English Heritage,09/09/2010,W D Close & Sons Ltd,784620,"26,422.41",Properties and Education Group Development Director,OPERATIONAL COSTS - Building Exhib & Displays
DCMS,English Heritage,19/05/2010,SoftwareOne UK Ltd,773982,"34,149.46",Resources Group Information Comms & Technology Dept,OTHER EXPENDITURE - Computer Equipment <10k
DCMS,English Heritage,14/07/2010,Gunite ( Eastern ) Ltd,780518,"96,803.04",Properties and Education Group Site Conservation Programme,OPERATIONAL COSTS - Works for Heritage Buildings
DCMS,English Heritage,25/08/2010,Gunite ( Eastern ) Ltd,783706,"83,928.50",Properties and Education Group Site Conservation Programme,OPERATIONAL COSTS - Works for Heritage Buildings
DCMS,English Heritage,27/09/2010,Gunite ( Eastern ) Ltd,786929,"39,487.51",Properties and Education Group Site Conservation Programme,OPERATIONAL COSTS - Works for Heritage Buildings
DCMS,English Heritage,06/08/2010,Kent Police,781957,"26,506.76",National Advice & Information Group EH Legal Services,PAYROLL - Agency Staff
DCMS,English Heritage,06/08/2010,Kent Police,781957,796.11,National Advice & Information Group EH Legal Services,PAYROLL - Agency Staff
DCMS,English Heritage,21/06/2010,Mayflower Technology Ltd,90509726,"68,680.00",Planning & Development Group Northern Territory,GRANTS PAYABLE - HISTORIC BUILDINGS
DCMS,English Heritage,24/06/2010,Mayflower Technology Ltd,90509754,"137,360.00",Planning & Development Group Northern Territory,GRANTS PAYABLE - HISTORIC BUILDINGS
DCMS,English Heritage,02/06/2010,Hadrian's Wall Heritage Ltd,90509678,"99,000.00",Planning & Development Group Northern Territory,GRANTS PAYABLE - OTHER GRANTS
DCMS,English Heritage,02/08/2010,North Warwickshire B C,90509903,"43,742.00",Planning & Development Group Western Territory,GRANTS PAYABLE - AREA
DCMS,English Heritage,21/04/2010,"The Dean and The Chapter, Bradford",90509445,"48,553.00",Planning & Development Group Planning & Development Centre,GRANTS PAYABLE - CATHEDRALS
DCMS,English Heritage,12/05/2010,Selby District Council,90509574,"26,219.00",Planning & Development Group Northern Territory,GRANTS PAYABLE - AREA
DCMS,English Heritage,16/06/2010,Dean Chapter Manchester Cathedral,90509716,"133,299.00",Planning & Development Group Planning & Development Centre,GRANTS PAYABLE - CATHEDRALS
DCMS,English Heritage,08/09/2010,Taunton Deane Borough Council,90510056,"56,560.00",Planning & Development Group Western Territory,GRANTS PAYABLE - HISTORIC BUILDINGS
DCMS,English Heritage,19/04/2010,Open House,90509378,"50,164.00",Planning & Development Group Southern Territory,GRANTS PAYABLE - OTHER GRANTS
DCMS,English Heritage,19/04/2010,Great Yarmouth Borough Council,90509421,"125,000.00",Planning & Development Group Eastern Territory,GRANTS PAYABLE - HISTORIC BUILDINGS
DCMS,English Heritage,21/04/2010,Cornwall County Council,90509446,"30,501.24",Planning & Development Group Western Territory,GRANTS PAYABLE - HISTORIC BUILDINGS
DCMS,English Heritage,10/05/2010,Scarborough Borough Council,90509547,"11,717.00",Planning & Development Group Northern Territory,GRANTS PAYABLE - AREA
DCMS,English Heritage,10/05/2010,Scarborough Borough Council,90509547,"26,073.00",Planning & Development Group Northern Territory,GRANTS PAYABLE - AREA
DCMS,English Heritage,29/06/2010,Chapter of Truro Cathedral,90509785,"100,000.00",Planning & Development Group Planning & Development Centre,GRANTS PAYABLE - CATHEDRALS
DCMS,English Heritage,12/05/2010,Richmondshire District Council,90509575,"44,925.00",Planning & Development Group Northern Territory,GRANTS PAYABLE - AREA
DCMS,English Heritage,23/08/2010,Richmondshire District Council,90509976,"5,075.00",Planning & Development Group Northern Territory,GRANTS PAYABLE - AREA
DCMS,English Heritage,23/08/2010,Richmondshire District Council,90509976,"31,039.00",Planning & Development Group Northern Territory,GRANTS PAYABLE - AREA
DCMS,English Heritage,02/06/2010,Barnsley MBC,90509683,"37,471.00",Planning & Development Group Northern Territory,GRANTS PAYABLE - AREA
DCMS,English Heritage,05/05/2010,Council for British Archaeology,90509505,"45,000.00",Planning & Development Group Planning & Development Centre,GRANTS PAYABLE - OTHER GRANTS
DCMS,English Heritage,19/04/2010,The Architectural Heritage Fund,90509413,"69,439.00",Planning & Development Group Planning & Development Centre,GRANTS PAYABLE - OTHER GRANTS
DCMS,English Heritage,29/06/2010,Council British Arch York,81001084,"35,000.00",Conservation & Protection Group Strategy Dept,COMMISSIONS - Historic Environment Prog Grants
DCMS,English Heritage,24/08/2010,Bournemouth University,81001147,"35,000.00",Conservation & Protection Group Strategy Dept,GRANTS PAYABLE - Maritime Grants
DCMS,English Heritage,05/08/2010,Norfolk Museums Service,81001124,"70,932.05",Conservation & Protection Group Strategy Dept,COMMISSIONS - Historic Environment Prog Grants
DCMS,English Heritage,28/09/2010,Newcastle University,81001173,"27,000.00",Conservation & Protection Group Strategy Dept,COMMISSIONS - Historic Environment Prog Grants
DCMS,English Heritage,25/05/2010,Landscape Research Centre,81001064,"34,000.00",Conservation & Protection Group Strategy Dept,GRANTS PAYABLE - Aggregate Levy Grants
DCMS,English Heritage,28/09/2010,Landscape Research Centre,81001176,"34,000.00",Conservation & Protection Group Strategy Dept,GRANTS PAYABLE - Aggregate Levy Grants
DCMS,English Heritage,06/09/2010,Holy Trinity Shaw PCC,90510048,"51,000.00",Planning & Development Group Northern Territory,GRANTS PAYABLE - PLACES OF WORSHIP
DCMS,English Heritage,23/08/2010,Greenfield St Marys PCC,90509991,"61,200.00",Planning & Development Group Northern Territory,GRANTS PAYABLE - PLACES OF WORSHIP
DCMS,English Heritage,23/08/2010,Greenfield St Marys PCC,90509994,"77,400.00",Planning & Development Group Northern Territory,GRANTS PAYABLE - PLACES OF WORSHIP
DCMS,English Heritage,24/05/2010,Assemblies of the First Born,90509627,"45,062.00",Planning & Development Group Western Territory,GRANTS PAYABLE - PLACES OF WORSHIP
DCMS,English Heritage,11/08/2010,Holy Trinity Blackpool,90509950,"80,810.00",Planning & Development Group Northern Territory,GRANTS PAYABLE - PLACES OF WORSHIP
DCMS,English Heritage,19/04/2010,Greek Orthodox Church Annunciation,90509355,"43,000.00",Planning & Development Group Northern Territory,GRANTS PAYABLE - PLACES OF WORSHIP
DCMS,English Heritage,10/05/2010,Greek Orthodox Church Annunciation,90509546,"38,700.00",Planning & Development Group Northern Territory,GRANTS PAYABLE - PLACES OF WORSHIP
DCMS,English Heritage,16/06/2010,Manchester Historic Buildings Trst,90509720,"39,398.00",Planning & Development Group Northern Territory,GRANTS PAYABLE - HISTORIC BUILDINGS
DCMS,English Heritage,07/04/2010,Gloucestershire County Council,90509346,"29,250.00",Planning & Development Group Western Territory,GRANTS PAYABLE - HISTORIC BUILDINGS
DCMS,English Heritage,04/08/2010,G Forge Ltd,90509915,"30,000.00",Planning & Development Group Southern Territory,GRANTS PAYABLE - HISTORIC BUILDINGS
DCMS,English Heritage,23/08/2010,Arnos Vale Cemetry Trust,90509986,"51,061.00",Planning & Development Group Western Territory,GRANTS PAYABLE - HISTORIC BUILDINGS
DCMS,English Heritage,23/08/2010,Arnos Vale Cemetry Trust,90509987,"43,572.00",Planning & Development Group Western Territory,GRANTS PAYABLE - HISTORIC BUILDINGS
DCMS,English Heritage,19/04/2010,The National Trust Worksop,90509416,"200,000.00",Planning & Development Group Eastern Territory,GRANTS PAYABLE - HISTORIC BUILDINGS
DCMS,English Heritage,26/05/2010,St David's Church Restorations,90509641,"125,500.00",Planning & Development Group Western Territory,GRANTS PAYABLE - HISTORIC BUILDINGS
DCMS,English Heritage,09/08/2010,St David's Church Restorations,90509938,"51,065.00",Planning & Development Group Western Territory,GRANTS PAYABLE - HISTORIC BUILDINGS
DCMS,English Heritage,17/05/2010,PCC of Sandwich,90509592,"44,500.00",Planning & Development Group Southern Territory,GRANTS PAYABLE - HISTORIC BUILDINGS
DCMS,English Heritage,26/07/2010,Thurlton PCC,90509892,"29,700.00",Planning & Development Group Eastern Territory,GRANTS PAYABLE - HISTORIC BUILDINGS
DCMS,English Heritage,09/08/2010,Hockering PCC,90509939,"48,500.00",Planning & Development Group Eastern Territory,GRANTS PAYABLE - HISTORIC BUILDINGS
DCMS,English Heritage,28/05/2010,Astley PCC,90509661,"42,500.00",Planning & Development Group Western Territory,GRANTS PAYABLE - HISTORIC BUILDINGS
DCMS,English Heritage,27/08/2010,Astley PCC,90510021,"38,250.00",Planning & Development Group Western Territory,GRANTS PAYABLE - HISTORIC BUILDINGS
DCMS,English Heritage,14/07/2010,St Mildreds PCC Whippingham,90509844,"72,244.00",Planning & Development Group Southern Territory,GRANTS PAYABLE - HISTORIC BUILDINGS
DCMS,English Heritage,26/07/2010,PCC of Slapton,90509886,"38,000.00",Planning & Development Group Southern Territory,GRANTS PAYABLE - HISTORIC BUILDINGS
DCMS,English Heritage,19/04/2010,Swine and Ellerby PCC,90509383,"91,000.00",Planning & Development Group Northern Territory,GRANTS PAYABLE - HISTORIC BUILDINGS
DCMS,English Heritage,27/08/2010,Swine and Ellerby PCC,90510028,"50,000.00",Planning & Development Group Northern Territory,GRANTS PAYABLE - HISTORIC BUILDINGS
DCMS,English Heritage,11/06/2010,All Saints Stand PCC,90509709,"18,000.00",Planning & Development Group Northern Territory,GRANTS PAYABLE - PLACES OF WORSHIP
DCMS,English Heritage,11/06/2010,All Saints Stand PCC,90509709,"69,300.00",Planning & Development Group Northern Territory,GRANTS PAYABLE - HISTORIC BUILDINGS
DCMS,English Heritage,19/04/2010,Word of Life Christian Community,90509384,"95,500.00",Planning & Development Group Northern Territory,GRANTS PAYABLE - HISTORIC BUILDINGS
DCMS,English Heritage,23/08/2010,Howden Minster PCC,90509996,"77,500.00",Planning & Development Group Northern Territory,GRANTS PAYABLE - HISTORIC BUILDINGS
DCMS,English Heritage,25/08/2010,St Georges Hanworth PCC,90510001,"63,450.00",Planning & Development Group Southern Territory,GRANTS PAYABLE - PLACES OF WORSHIP
DCMS,English Heritage,02/08/2010,PCC St Johns Evangelist Sparkhill,90509905,"54,451.00",Planning & Development Group Western Territory,GRANTS PAYABLE - PLACES OF WORSHIP
DCMS,English Heritage,05/05/2010,The Community of St Mary,90509516,"29,900.00",Planning & Development Group Western Territory,GRANTS PAYABLE - PLACES OF WORSHIP
DCMS,English Heritage,05/05/2010,The Community of St Mary,90509516,"25,000.00",Planning & Development Group Western Territory,GRANTS PAYABLE - PLACES OF WORSHIP
DCMS,English Heritage,25/08/2010,Carlton Miniott PCC,90510018,"42,500.00",Planning & Development Group Northern Territory,GRANTS PAYABLE - PLACES OF WORSHIP
DCMS,English Heritage,19/05/2010,Stanley PCC,90509608,"25,650.00",Planning & Development Group Northern Territory,GRANTS PAYABLE - PLACES OF WORSHIP
DCMS,English Heritage,28/05/2010,Trustees of St Johns Church,90509655,"68,000.00",Planning & Development Group Northern Territory,GRANTS PAYABLE - PLACES OF WORSHIP
DCMS,English Heritage,06/09/2010,Trustees of St Johns Church,90510047,"56,871.00",Planning & Development Group Northern Territory,GRANTS PAYABLE - PLACES OF WORSHIP
DCMS,English Heritage,19/05/2010,Ordsall St Clements PCC,90509611,"85,000.00",Planning & Development Group Northern Territory,GRANTS PAYABLE - PLACES OF WORSHIP
DCMS,English Heritage,05/07/2010,St James Church Pendleton PCC,90509808,"90,000.00",Planning & Development Group Northern Territory,GRANTS PAYABLE - PLACES OF WORSHIP
DCMS,English Heritage,05/05/2010,PCC St Andrews Welsh Frankton,90509524,"34,500.00",Planning & Development Group Western Territory,GRANTS PAYABLE - PLACES OF WORSHIP
DCMS,English Heritage,21/06/2010,PCC St Andrews Welsh Frankton,90509739,"31,050.00",Planning & Development Group Western Territory,GRANTS PAYABLE - PLACES OF WORSHIP
DCMS,English Heritage,20/09/2010,Norden St Pauls PCC,90510100,"97,500.00",Planning & Development Group Northern Territory,GRANTS PAYABLE - PLACES OF WORSHIP
DCMS,English Heritage,02/06/2010,Bramley PCC,90509681,"41,000.00",Planning & Development Group Northern Territory,GRANTS PAYABLE - PLACES OF WORSHIP
DCMS,English Heritage,23/04/2010,St Vincent de Paul Church,90509462,"59,389.00",Planning & Development Group Northern Territory,GRANTS PAYABLE - PLACES OF WORSHIP
DCMS,English Heritage,02/08/2010,St James Priory,90509907,"100,000.00",Planning & Development Group Western Territory,GRANTS PAYABLE - HISTORIC BUILDINGS
DCMS,English Heritage,27/08/2010,St James Priory,90510026,"45,000.00",Planning & Development Group Western Territory,GRANTS PAYABLE - HISTORIC BUILDINGS
DCMS,English Heritage,15/09/2010,St Antonys Catholic Club,90510084,"29,920.00",Planning & Development Group Southern Territory,GRANTS PAYABLE - HISTORIC BUILDINGS
DCMS,English Heritage,22/09/2010,Wiggenhall St Germans PCC,90510106,"50,000.00",Planning & Development Group Eastern Territory,GRANTS PAYABLE - HISTORIC BUILDINGS
DCMS,English Heritage,22/09/2010,Wiggenhall St Germans PCC,90510108,"38,063.00",Planning & Development Group Eastern Territory,GRANTS PAYABLE - HISTORIC BUILDINGS
DCMS,English Heritage,09/06/2010,Urban Splash South West Ltd,90509704,"53,040.00",Planning & Development Group Western Territory,GRANTS PAYABLE - HISTORIC BUILDINGS
DCMS,English Heritage,14/07/2010,Cavendish PCC,90509850,"42,750.00",Planning & Development Group Eastern Territory,GRANTS PAYABLE - HISTORIC BUILDINGS
DCMS,English Heritage,07/06/2010,St John The Baptist Nettleton PCC,90509694,"53,000.00",Planning & Development Group Eastern Territory,GRANTS PAYABLE - HISTORIC BUILDINGS
DCMS,English Heritage,09/08/2010,Greater Whitbourne PCC,90509936,"34,000.00",Planning & Development Group Western Territory,GRANTS PAYABLE - HISTORIC BUILDINGS
DCMS,English Heritage,12/05/2010,PCC Kirby Grindalythe,90509571,"32,400.00",Planning & Development Group Northern Territory,GRANTS PAYABLE - PLACES OF WORSHIP
DCMS,English Heritage,12/05/2010,PCC Kirby Grindalythe,90509576,"27,900.00",Planning & Development Group Northern Territory,GRANTS PAYABLE - HISTORIC BUILDINGS
DCMS,English Heritage,12/05/2010,PCC Kirby Grindalythe,90509576,"12,600.00",Planning & Development Group Northern Territory,GRANTS PAYABLE - PLACES OF WORSHIP
DCMS,English Heritage,05/05/2010,Holy Trinity Fabric Fund,90509511,"28,500.00",Planning & Development Group Western Territory,GRANTS PAYABLE - HISTORIC BUILDINGS
DCMS,English Heritage,24/05/2010,Holy Trinity Fabric Fund,90509624,"25,650.00",Planning & Development Group Western Territory,GRANTS PAYABLE - HISTORIC BUILDINGS
DCMS,English Heritage,28/05/2010,Milton PCC,90509654,"82,000.00",Planning & Development Group Southern Territory,GRANTS PAYABLE - HISTORIC BUILDINGS
DCMS,English Heritage,22/09/2010,Stansted Mountfitchet PC,90510105,"44,800.00",Planning & Development Group Eastern Territory,GRANTS PAYABLE - HISTORIC BUILDINGS
DCMS,English Heritage,21/06/2010,Donyatt Church PCC,90509730,"40,000.00",Planning & Development Group Western Territory,GRANTS PAYABLE - HISTORIC BUILDINGS
DCMS,English Heritage,19/04/2010,St Francis Xavier Church,90509360,"49,050.00",Planning & Development Group Northern Territory,GRANTS PAYABLE - PLACES OF WORSHIP
DCMS,English Heritage,28/07/2010,Fridaythorpe PCC,90509898,"32,400.00",Planning & Development Group Northern Territory,GRANTS PAYABLE - PLACES OF WORSHIP
DCMS,English Heritage,02/08/2010,All Saints PCC Newland Redbrook,90509908,"54,600.00",Planning & Development Group Western Territory,GRANTS PAYABLE - PLACES OF WORSHIP
DCMS,English Heritage,28/07/2010,Parish of Kirkleatham PCC,90509899,"26,500.00",Planning & Development Group Northern Territory,GRANTS PAYABLE - HISTORIC BUILDINGS
DCMS,English Heritage,23/04/2010,Wetwang PCC,90509458,"79,500.00",Planning & Development Group Northern Territory,GRANTS PAYABLE - HISTORIC BUILDINGS
DCMS,English Heritage,14/07/2010,Wetwang PCC,90509852,"71,550.00",Planning & Development Group Northern Territory,GRANTS PAYABLE - HISTORIC BUILDINGS
DCMS,English Heritage,19/04/2010,St Michaels Church Swaton PCC,90509405,"32,025.00",Planning & Development Group Eastern Territory,GRANTS PAYABLE - PLACES OF WORSHIP
DCMS,English Heritage,14/07/2010,St Marys Stockport PCC,90509848,"20,000.00",Planning & Development Group Northern Territory,GRANTS PAYABLE - HISTORIC BUILDINGS
DCMS,English Heritage,14/07/2010,St Marys Stockport PCC,90509848,"6,000.00",Planning & Development Group Northern Territory,GRANTS PAYABLE - HISTORIC BUILDINGS
DCMS,English Heritage,16/08/2010,City Centre Parish Canterbury PCC,90700017,"48,000.00",Planning & Development Group Southern Territory,GRANTS PAYABLE - HISTORIC BUILDINGS
DCMS,English Heritage,02/06/2010,St Georges Church Everton,90509676,"27,900.00",Planning & Development Group Northern Territory,GRANTS PAYABLE - PLACES OF WORSHIP
DCMS,English Heritage,28/04/2010,St John on Bethnal Green PCC,90509484,"64,500.00",Planning & Development Group Southern Territory,GRANTS PAYABLE - HISTORIC BUILDINGS
DCMS,English Heritage,29/06/2010,St John on Bethnal Green PCC,90509770,"53,498.00",Planning & Development Group Southern Territory,GRANTS PAYABLE - HISTORIC BUILDINGS
DCMS,English Heritage,21/07/2010,Ossett and Gawthorpe PCC,90509870,"40,950.00",Planning & Development Group Northern Territory,GRANTS PAYABLE - HISTORIC BUILDINGS
DCMS,English Heritage,21/06/2010,Hampton Lucy PCC,90509736,"59,000.00",Planning & Development Group Western Territory,GRANTS PAYABLE - PLACES OF WORSHIP
DCMS,English Heritage,19/04/2010,St George Doncaster PCC,90509390,"57,600.00",Planning & Development Group Northern Territory,GRANTS PAYABLE - PLACES OF WORSHIP
DCMS,English Heritage,25/08/2010,Wentworth Castle Stainborough Park,90510011,"93,739.00",Planning & Development Group Northern Territory,GRANTS PAYABLE - HISTORIC BUILDINGS
DCMS,English Heritage,25/08/2010,Wentworth Castle Stainborough Park,90510012,"74,991.00",Planning & Development Group Northern Territory,GRANTS PAYABLE - HISTORIC BUILDINGS
DCMS,English Heritage,12/05/2010,St Ricarius Aberford PCC,90509560,"33,079.00",Planning & Development Group Northern Territory,GRANTS PAYABLE - PLACES OF WORSHIP
DCMS,English Heritage,05/05/2010,Foy PCC,90509515,"37,500.00",Planning & Development Group Western Territory,GRANTS PAYABLE - HISTORIC BUILDINGS
DCMS,English Heritage,21/06/2010,St John the Baptist Letton PCC,90509733,"25,650.00",Planning & Development Group Western Territory,GRANTS PAYABLE - HISTORIC BUILDINGS
DCMS,English Heritage,26/07/2010,PCC of St Lukes,90509873,"60,000.00",Planning & Development Group Northern Territory,GRANTS PAYABLE - PLACES OF WORSHIP
DCMS,English Heritage,12/05/2010,Harden Congregational Church,90509561,"62,500.00",Planning & Development Group Northern Territory,GRANTS PAYABLE - PLACES OF WORSHIP
DCMS,English Heritage,28/07/2010,Harden Congregational Church,90509896,"56,250.00",Planning & Development Group Northern Territory,GRANTS PAYABLE - PLACES OF WORSHIP
DCMS,English Heritage,27/09/2010,Doddington PCC,90510114,"48,000.00",Planning & Development Group Western Territory,GRANTS PAYABLE - PLACES OF WORSHIP
DCMS,English Heritage,07/07/2010,St Matthews PCC Winchester,90509820,"32,500.00",Planning & Development Group Southern Territory,GRANTS PAYABLE - PLACES OF WORSHIP
DCMS,English Heritage,05/07/2010,Ashton Under Lyne St Peters Church,90509795,"30,000.00",Planning & Development Group Northern Territory,GRANTS PAYABLE - HISTORIC BUILDINGS
DCMS,English Heritage,28/05/2010,Diocese of Ripon and Leeds,90509668,"25,031.00",Planning & Development Group Northern Territory,GRANTS PAYABLE - HISTORIC BUILDINGS
DCMS,English Heritage,24/06/2010,City of London Corporation,90509745,"26,680.00",Planning & Development Group Southern Territory,GRANTS PAYABLE - HISTORIC BUILDINGS
DCMS,English Heritage,16/08/2010,Derby City Council,90700012,"46,150.00",Planning & Development Group Eastern Territory,GRANTS PAYABLE - AREA
DCMS,English Heritage,16/07/2010,Heritage Trust of Lincolnshire,90509861,"84,700.00",Planning & Development Group Eastern Territory,GRANTS PAYABLE - HISTORIC BUILDINGS
DCMS,English Heritage,26/07/2010,Woodeaton PCC,90509883,"18,787.00",Planning & Development Group Southern Territory,GRANTS PAYABLE - HISTORIC BUILDINGS
DCMS,English Heritage,26/07/2010,Woodeaton PCC,90509883,"31,000.00",Planning & Development Group Southern Territory,GRANTS PAYABLE - HISTORIC BUILDINGS
DCMS,English Heritage,19/04/2010,The Vivat Trust Ltd,90509389,"28,801.00",Planning & Development Group Northern Territory,GRANTS PAYABLE - HISTORIC BUILDINGS
DCMS,English Heritage,28/05/2010,PCC of All Saints Church,90509657,"139,500.00",Planning & Development Group Western Territory,GRANTS PAYABLE - HISTORIC BUILDINGS
DCMS,English Heritage,09/08/2010,West Dereham PCC,90509937,"29,400.00",Planning & Development Group Eastern Territory,GRANTS PAYABLE - HISTORIC BUILDINGS
DCMS,English Heritage,09/08/2010,West Dereham PCC,90509937,"30,000.00",Planning & Development Group Eastern Territory,GRANTS PAYABLE - HISTORIC BUILDINGS
DCMS,English Heritage,16/08/2010,PCC of St Augustine,90700011,"43,000.00",Planning & Development Group Southern Territory,GRANTS PAYABLE - HISTORIC BUILDINGS
DCMS,English Heritage,07/07/2010,St Botolph PCC,90509818,"60,000.00",Planning & Development Group Southern Territory,GRANTS PAYABLE - HISTORIC BUILDINGS
DCMS,English Heritage,19/05/2010,Hilton PCC,90509613,"26,000.00",Planning & Development Group Eastern Territory,GRANTS PAYABLE - HISTORIC BUILDINGS
DCMS,English Heritage,23/08/2010,New West End Synagogue,90509943,"39,600.00",Planning & Development Group Southern Territory,GRANTS PAYABLE - HISTORIC BUILDINGS
DCMS,English Heritage,08/09/2010,St Marys Acle with Fishley PCC,90510058,"35,500.00",Planning & Development Group Eastern Territory,GRANTS PAYABLE - HISTORIC BUILDINGS
DCMS,English Heritage,22/09/2010,Cranwich PCC,90510104,"5,000.00",Planning & Development Group Eastern Territory,GRANTS PAYABLE - HISTORIC BUILDINGS
DCMS,English Heritage,22/09/2010,Cranwich PCC,90510104,"47,000.00",Planning & Development Group Eastern Territory,GRANTS PAYABLE - HISTORIC BUILDINGS
DCMS,English Heritage,25/05/2010,Pulham St Mary PPC,90509638,"27,350.00",Planning & Development Group Eastern Territory,GRANTS PAYABLE - HISTORIC BUILDINGS
DCMS,English Heritage,25/05/2010,Pulham St Mary PPC,90509638,"5,500.00",Planning & Development Group Eastern Territory,GRANTS PAYABLE - HISTORIC BUILDINGS
DCMS,English Heritage,20/09/2010,St Peter and Paul Milton PCC,90510096,"27,000.00",Planning & Development Group Southern Territory,GRANTS PAYABLE - PLACES OF WORSHIP
DCMS,English Heritage,11/08/2010,Tivetshall PCC,90509946,"28,396.00",Planning & Development Group Eastern Territory,GRANTS PAYABLE - HISTORIC BUILDINGS
DCMS,English Heritage,02/08/2010,St Mary The Virgin PCC Hereford,90509906,"32,500.00",Planning & Development Group Western Territory,GRANTS PAYABLE - HISTORIC BUILDINGS
DCMS,English Heritage,05/07/2010,Denham PCC,90509811,"50,000.00",Planning & Development Group Eastern Territory,GRANTS PAYABLE - HISTORIC BUILDINGS
DCMS,English Heritage,23/08/2010,Henstead PCC,90509984,"30,150.00",Planning & Development Group Eastern Territory,GRANTS PAYABLE - HISTORIC BUILDINGS
DCMS,English Heritage,19/04/2010,Swineshead Parish PCC,90509400,"65,000.00",Planning & Development Group Eastern Territory,GRANTS PAYABLE - HISTORIC BUILDINGS
DCMS,English Heritage,01/09/2010,Swineshead Parish PCC,90510035,"32,500.00",Planning & Development Group Eastern Territory,GRANTS PAYABLE - HISTORIC BUILDINGS
DCMS,English Heritage,01/09/2010,Little Hougton PCC,90510034,"28,800.00",Planning & Development Group Eastern Territory,GRANTS PAYABLE - HISTORIC BUILDINGS
DCMS,English Heritage,18/08/2010,St Boltophs Trunch PCC,90509970,"28,800.00",Planning & Development Group Eastern Territory,GRANTS PAYABLE - HISTORIC BUILDINGS
DCMS,English Heritage,24/06/2010,Holy Trinity Raithby PCC,90509748,"28,500.00",Planning & Development Group Eastern Territory,GRANTS PAYABLE - HISTORIC BUILDINGS
DCMS,English Heritage,10/05/2010,The Parish Church of St Laurence,90509550,"105,500.00",Planning & Development Group Western Territory,GRANTS PAYABLE - HISTORIC BUILDINGS
DCMS,English Heritage,12/07/2010,The Parish Church of St Laurence,90509828,"94,950.00",Planning & Development Group Western Territory,GRANTS PAYABLE - HISTORIC BUILDINGS
DCMS,English Heritage,19/04/2010,Holy Trinity Church Swallow PCC,90509412,"27,000.00",Planning & Development Group Eastern Territory,GRANTS PAYABLE - HISTORIC BUILDINGS
DCMS,English Heritage,29/06/2010,St Marks Church Dalston,90509769,"36,000.00",Planning & Development Group Southern Territory,GRANTS PAYABLE - HISTORIC BUILDINGS
DCMS,English Heritage,21/06/2010,North Elmham PCC,90509744,"27,000.00",Planning & Development Group Eastern Territory,GRANTS PAYABLE - HISTORIC BUILDINGS
DCMS,English Heritage,21/06/2010,Langley PCC,90509743,"68,000.00",Planning & Development Group Eastern Territory,GRANTS PAYABLE - HISTORIC BUILDINGS
DCMS,English Heritage,16/06/2010,St Swithuns PCC East Retford,90509721,"76,500.00",Planning & Development Group Eastern Territory,GRANTS PAYABLE - HISTORIC BUILDINGS
DCMS,English Heritage,25/08/2010,St Swithuns PCC East Retford,90510010,"38,250.00",Planning & Development Group Eastern Territory,GRANTS PAYABLE - HISTORIC BUILDINGS
DCMS,English Heritage,21/06/2010,St Mary the Virgin Aldeby PCC,90509742,"40,000.00",Planning & Development Group Eastern Territory,GRANTS PAYABLE - HISTORIC BUILDINGS
DCMS,English Heritage,24/06/2010,Leybourne PCC,90509751,"57,600.00",Planning & Development Group Southern Territory,GRANTS PAYABLE - HISTORIC BUILDINGS
DCMS,English Heritage,15/09/2010,St Johns Church Hughley PCC,90510078,"32,500.00",Planning & Development Group Western Territory,GRANTS PAYABLE - HISTORIC BUILDINGS
DCMS,English Heritage,16/07/2010,Merstham PCC,90509856,"36,000.00",Planning & Development Group Southern Territory,GRANTS PAYABLE - HISTORIC BUILDINGS
DCMS,English Heritage,19/04/2010,Saltaire URC,90509385,"58,000.00",Planning & Development Group Northern Territory,GRANTS PAYABLE - HISTORIC BUILDINGS
DCMS,English Heritage,23/08/2010,Saltaire URC,90509978,"47,203.00",Planning & Development Group Northern Territory,GRANTS PAYABLE - HISTORIC BUILDINGS
DCMS,English Heritage,17/05/2010,St Georges Wrotham PCC,90509595,"39,500.00",Planning & Development Group Southern Territory,GRANTS PAYABLE - HISTORIC BUILDINGS
DCMS,English Heritage,16/08/2010,St Georges Wrotham PCC,90700016,"33,312.00",Planning & Development Group Southern Territory,GRANTS PAYABLE - HISTORIC BUILDINGS
DCMS,English Heritage,23/08/2010,Clifton Upon Teme PCC,90509974,"38,500.00",Planning & Development Group Western Territory,GRANTS PAYABLE - HISTORIC BUILDINGS
DCMS,English Heritage,12/07/2010,Dunterton Church,90509843,"44,000.00",Planning & Development Group Western Territory,GRANTS PAYABLE - HISTORIC BUILDINGS
DCMS,English Heritage,28/05/2010,Sigglesthorne PCC,90509666,"66,500.00",Planning & Development Group Northern Territory,GRANTS PAYABLE - HISTORIC BUILDINGS
DCMS,English Heritage,15/09/2010,Sigglesthorne PCC,90510087,"32,500.00",Planning & Development Group Northern Territory,GRANTS PAYABLE - HISTORIC BUILDINGS
DCMS,English Heritage,15/09/2010,Sigglesthorne PCC,90510087,"27,350.00",Planning & Development Group Northern Territory,GRANTS PAYABLE - HISTORIC BUILDINGS
DCMS,English Heritage,27/08/2010,Blackawton Parish Church,90510032,"54,900.00",Planning & Development Group Western Territory,GRANTS PAYABLE - HISTORIC BUILDINGS
DCMS,English Heritage,26/05/2010,St Decumans PCC,90509646,"27,500.00",Planning & Development Group Western Territory,GRANTS PAYABLE - PLACES OF WORSHIP
DCMS,English Heritage,16/08/2010,Bothal PCC,90509960,"25,000.00",Planning & Development Group Northern Territory,GRANTS PAYABLE - HISTORIC BUILDINGS
DCMS,English Heritage,16/08/2010,Bothal PCC,90509960,"2,000.00",Planning & Development Group Northern Territory,GRANTS PAYABLE - HISTORIC BUILDINGS
DCMS,English Heritage,24/05/2010,Hedon PCC,90509621,"50,000.00",Planning & Development Group Northern Territory,GRANTS PAYABLE - HISTORIC BUILDINGS
DCMS,English Heritage,13/09/2010,All Saints Longhope PCC,90510070,"54,000.00",Planning & Development Group Western Territory,GRANTS PAYABLE - HISTORIC BUILDINGS
DCMS,English Heritage,10/05/2010,St Mary the Virgin Bosley PCC,90509552,"36,000.00",Planning & Development Group Northern Territory,GRANTS PAYABLE - HISTORIC BUILDINGS
DCMS,English Heritage,11/08/2010,St Mary the Virgin Bosley PCC,90509951,"16,000.00",Planning & Development Group Northern Territory,GRANTS PAYABLE - HISTORIC BUILDINGS
DCMS,English Heritage,11/08/2010,St Mary the Virgin Bosley PCC,90509951,"16,400.00",Planning & Development Group Northern Territory,GRANTS PAYABLE - HISTORIC BUILDINGS
DCMS,English Heritage,19/04/2010,St Marys PCC Bishops Lydeard,90509391,"37,500.00",Planning & Development Group Western Territory,GRANTS PAYABLE - HISTORIC BUILDINGS
DCMS,English Heritage,26/05/2010,Chilton Cantelo PCC,90509647,"56,500.00",Planning & Development Group Western Territory,GRANTS PAYABLE - HISTORIC BUILDINGS
DCMS,English Heritage,24/05/2010,PCC of St Helens Skeffling,90509618,"87,000.00",Planning & Development Group Northern Territory,GRANTS PAYABLE - HISTORIC BUILDINGS
DCMS,English Heritage,08/09/2010,"PCC of St Mary, Westonzoyland",90510054,"40,000.00",Planning & Development Group Western Territory,GRANTS PAYABLE - HISTORIC BUILDINGS
DCMS,English Heritage,28/05/2010,St Mary Axminster PCC,90509658,"62,500.00",Planning & Development Group Western Territory,GRANTS PAYABLE - HISTORIC BUILDINGS
DCMS,English Heritage,15/09/2010,St Mary Axminster PCC,90510089,"56,250.00",Planning & Development Group Western Territory,GRANTS PAYABLE - HISTORIC BUILDINGS
DCMS,English Heritage,11/08/2010,St Marys the Virgin Baldock PCC,90509947,"36,500.00",Planning & Development Group Eastern Territory,GRANTS PAYABLE - HISTORIC BUILDINGS
DCMS,English Heritage,22/09/2010,St Marys the Virgin Baldock PCC,90510107,"36,500.00",Planning & Development Group Eastern Territory,GRANTS PAYABLE - HISTORIC BUILDINGS
DCMS,English Heritage,19/04/2010,Friends of St Cubys Church,90509394,"30,500.00",Planning & Development Group Western Territory,GRANTS PAYABLE - HISTORIC BUILDINGS
DCMS,English Heritage,23/08/2010,Friends of St Cubys Church,90509989,"27,450.00",Planning & Development Group Western Territory,GRANTS PAYABLE - HISTORIC BUILDINGS
DCMS,English Heritage,23/08/2010,St John's Methodist Church,90509988,"61,166.00",Planning & Development Group Western Territory,GRANTS PAYABLE - HISTORIC BUILDINGS
DCMS,English Heritage,21/07/2010,St James Church Whitehaven PCC,90509866,"32,000.00",Planning & Development Group Northern Territory,GRANTS PAYABLE - HISTORIC BUILDINGS
DCMS,English Heritage,21/07/2010,St James Church Whitehaven PCC,90509866,"6,500.00",Planning & Development Group Northern Territory,GRANTS PAYABLE - HISTORIC BUILDINGS
DCMS,English Heritage,27/09/2010,"St Johns Parish Church, Silverdale",90510120,"31,000.00",Planning & Development Group Northern Territory,GRANTS PAYABLE - HISTORIC BUILDINGS
DCMS,English Heritage,05/07/2010,Sussex Archaeological Society,90509799,"57,500.00",Planning & Development Group Southern Territory,GRANTS PAYABLE - HISTORIC BUILDINGS
DCMS,English Heritage,29/09/2010,Brothertoft Group PCC,90510122,"31,000.00",Planning & Development Group Eastern Territory,GRANTS PAYABLE - PLACES OF WORSHIP
DCMS,English Heritage,07/06/2010,PCC of Lower Beeding,90509690,"40,000.00",Planning & Development Group Southern Territory,GRANTS PAYABLE - PLACES OF WORSHIP
DCMS,English Heritage,07/07/2010,Saint Catherines Church PCC,90509819,"28,000.00",Planning & Development Group Southern Territory,GRANTS PAYABLE - PLACES OF WORSHIP
DCMS,English Heritage,02/06/2010,St Michaels Bishop Itchington PCC,90509673,"80,500.00",Planning & Development Group Western Territory,GRANTS PAYABLE - PLACES OF WORSHIP
DCMS,English Heritage,07/07/2010,Liversedge PCC,90509814,"69,000.00",Planning & Development Group Northern Territory,GRANTS PAYABLE - PLACES OF WORSHIP
DCMS,English Heritage,11/06/2010,St Peters Church Newbold,90509708,"115,500.00",Planning & Development Group Northern Territory,GRANTS PAYABLE - PLACES OF WORSHIP
DCMS,English Heritage,06/09/2010,St Peters Church Newbold,90510049,"88,500.00",Planning & Development Group Northern Territory,GRANTS PAYABLE - PLACES OF WORSHIP
DCMS,English Heritage,06/09/2010,St Peters Church Newbold,90510049,"15,450.00",Planning & Development Group Northern Territory,GRANTS PAYABLE - PLACES OF WORSHIP
DCMS,English Heritage,15/09/2010,St Marys PCC Wooler,90510080,"27,000.00",Planning & Development Group Northern Territory,GRANTS PAYABLE - PLACES OF WORSHIP
DCMS,English Heritage,11/08/2010,St Gabriels PCC Prestwich,90509957,"26,000.00",Planning & Development Group Northern Territory,GRANTS PAYABLE - PLACES OF WORSHIP
DCMS,English Heritage,05/07/2010,Diocese of Hexham and Newcastle,90509804,"49,000.00",Planning & Development Group Northern Territory,GRANTS PAYABLE - PLACES OF WORSHIP
DCMS,English Heritage,16/08/2010,Diocese of Hexham and Newcastle,90509964,"44,100.00",Planning & Development Group Northern Territory,GRANTS PAYABLE - PLACES OF WORSHIP
DCMS,English Heritage,07/06/2010,Downs Baptist Church,90509693,"108,500.00",Planning & Development Group Southern Territory,GRANTS PAYABLE - PLACES OF WORSHIP
DCMS,English Heritage,23/08/2010,Downs Baptist Church,90509998,"92,500.00",Planning & Development Group Southern Territory,GRANTS PAYABLE - PLACES OF WORSHIP
DCMS,English Heritage,23/08/2010,Downs Baptist Church,90509998,"3,774.00",Planning & Development Group Southern Territory,GRANTS PAYABLE - PLACES OF WORSHIP
DCMS,English Heritage,26/07/2010,St Johns Truro PCC,90509880,"105,000.00",Planning & Development Group Western Territory,GRANTS PAYABLE - PLACES OF WORSHIP
DCMS,English Heritage,24/05/2010,Eye Town Hall Improvements Ltd,90509639,"43,500.00",Planning & Development Group Eastern Territory,GRANTS PAYABLE - HISTORIC BUILDINGS
DCMS,English Heritage,13/09/2010,The Ellenroad Trust Ltd,90510060,"47,460.00",Planning & Development Group Northern Territory,GRANTS PAYABLE - HISTORIC BUILDINGS
DCMS,English Heritage,19/04/2010,Crown Estate Paving Commission,90509381,"64,500.00",Planning & Development Group Southern Territory,GRANTS PAYABLE - HISTORIC BUILDINGS
DCMS,English Heritage,06/09/2010,Derbyshire County Council,90510043,"41,713.00",Planning & Development Group Eastern Territory,GRANTS PAYABLE - HISTORIC BUILDINGS
DCMS,English Heritage,06/09/2010,Derbyshire County Council,90510044,"59,280.00",Planning & Development Group Eastern Territory,GRANTS PAYABLE - HISTORIC BUILDINGS
DCMS,English Heritage,28/04/2010,Hermitage Housing Association Ltd,90509478,"57,500.00",Planning & Development Group Southern Territory,GRANTS PAYABLE - HISTORIC BUILDINGS
DCMS,English Heritage,24/06/2010,Ulverston Town Council,90509749,"60,088.00",Planning & Development Group Northern Territory,GRANTS PAYABLE - HISTORIC BUILDINGS
DCMS,English Heritage,13/09/2010,The PCC of All Saints Parish,90510065,"50,500.00",Planning & Development Group Northern Territory,GRANTS PAYABLE - HISTORIC BUILDINGS
DCMS,English Heritage,30/04/2010,Calver Weir Restoration Project,90509498,"40,000.00",Planning & Development Group Eastern Territory,GRANTS PAYABLE - HISTORIC BUILDINGS
DCMS,English Heritage,05/07/2010,South Elmham Hall,90509809,"29,510.00",Planning & Development Group Eastern Territory,GRANTS PAYABLE - HISTORIC BUILDINGS
DCMS,English Heritage,28/05/2010,Provost and Council Of Coventry,90509662,"29,000.00",Planning & Development Group Planning & Development Centre,GRANTS PAYABLE - CATHEDRALS
DCMS,English Heritage,28/05/2010,Provost and Council Of Coventry,90509664,"34,000.00",Planning & Development Group Planning & Development Centre,GRANTS PAYABLE - CATHEDRALS
DCMS,English Heritage,29/06/2010,Provost and Council Of Coventry,90509786,"37,500.00",Planning & Development Group Western Territory,GRANTS PAYABLE - HISTORIC BUILDINGS
DCMS,English Heritage,27/08/2010,Provost and Council Of Coventry,90510023,"30,000.00",Planning & Development Group Western Territory,GRANTS PAYABLE - HISTORIC BUILDINGS
DCMS,English Heritage,27/08/2010,Provost and Council Of Coventry,90510030,"27,200.00",Planning & Development Group Planning & Development Centre,GRANTS PAYABLE - CATHEDRALS
DCMS,English Heritage,26/07/2010,The Provender Trust,90509887,"45,000.00",Planning & Development Group Southern Territory,GRANTS PAYABLE - HISTORIC BUILDINGS
DCMS,English Heritage,08/09/2010,Lyme Bay Cider Company Ltd,1070372,"26,868.85",Properties and Education Group Retail Dept,STOCK - Retail Goods & Souvenirs purchases
DCMS,English Heritage,22/04/2010,Tymeagain Ltd,1068071,"27,819.30",Properties and Education Group Retail Dept,STOCK - Retail Goods & Souvenirs purchases
DCMS,English Heritage,04/06/2010,Littlehampton Book Service Ltd,1068653,"25,800.00",Properties and Education Group Retail Dept,STOCK - Retail Goods & Souvenirs purchases
DCMS,English Heritage,19/04/2010,Beauvale Priory,90509411,"33,000.00",Planning & Development Group Eastern Territory,GRANTS PAYABLE - HISTORIC BUILDINGS
DCMS,English Heritage,29/06/2010,Beauvale Priory,90509784,"44,550.00",Planning & Development Group Eastern Territory,GRANTS PAYABLE - HISTORIC BUILDINGS
DCMS,English Heritage,19/04/2010,The Berkswell Windmill,90509370,"32,928.00",Planning & Development Group Western Territory,GRANTS PAYABLE - HISTORIC BUILDINGS
DCMS,English Heritage,21/06/2010,Kingsbury Hall,90509735,"36,584.00",Planning & Development Group Western Territory,GRANTS PAYABLE - HISTORIC BUILDINGS
DCMS,English Heritage,19/04/2010,Hoveton Hall Estate,90509422,"38,400.00",Planning & Development Group Eastern Territory,GRANTS PAYABLE - HISTORIC BUILDINGS
DCMS,English Heritage,11/06/2010,Hagley Hall,90509710,"31,500.00",Planning & Development Group Western Territory,GRANTS PAYABLE - HISTORIC BUILDINGS
DCMS,English Heritage,13/09/2010,Blythburgh Priory,90510067,"35,111.00",Planning & Development Group Eastern Territory,GRANTS PAYABLE - HISTORIC BUILDINGS
